[Event "FRA-chT Top 12 2019"]
[Site "Brest"]
[Date "2019.05.27"]
[Round "10.6"]
[White "Oparin, Grigoriy"]
[Black "Maze, Sebastien"]
[Result "1-0"]
[ECO "A13"]
[WhiteElo "2624"]
[BlackElo "2579"]
[Annotator "RC"]
[PlyCount "65"]
[EventDate "2019.05.18"]
[EventType "team-tourn"]
[EventCountry "FRA"]
[SourceTitle "playchess.com"]
[Source "ChessBase"]
[SourceQuality "1"]
[TimeControl "40/5400+30:1800+30"]

1. c4 {[%emt 0:00:00]} e6 {[%emt 0:00:12]} 2. Nf3 {[%emt 0:01:05]} d5 {[%emt 0:00:37]} 3. g3 {[%emt 0:00:06]} Nf6 {[%emt 0:01:09]} 4. Bg2 {[%emt 0:00:07]} dxc4 {[%emt 0:00:07]} 5. Qa4+ {[%emt 0:00:13]} Nbd7 {[%emt 0:00:10]} 6. Qxc4 {[%emt 0:01:02]} a6 {[%emt 0:00:45]} 7. Qc2 {[%emt 0:05:45]} c5 {[%emt 0:03:35]} 8. Nc3 {[%emt 0:05:31]} Bd6 {[%emt 0:10:33]} 9. d4 {[%emt 0:12:52]} Qc7 {[%emt 0:07:30]} 10. O-O {[%emt 0:03:25]} O-O {[%emt 0:17:16]} 11. Rd1 {[%emt 0:05:30]} b6 {[%emt 0:07:56]} 12. d5 {[%emt 0:19:20]} e5 {[%emt 0:02:20]} 13. Nh4 {[%emt 0:01:18]} g6 {[%emt 0:03:52]} 14. Bg5 {[%emt 0:02:16]} Bb7 {[%emt 0:09:40]} 15. Qd2 {[%emt 0:02:40]} b5 {[%emt 0:03:57]} 16. Rac1 {[%emt 0:06:15]} Kh8 {[%emt 0:01:17]} 17. b3 {[%emt 0:03:20]} Rae8 {[%emt 0:09:07]} 18. e4 {[%emt 0:07:26]} Ng8 {[%emt 0:02:09]} 19. Bh3 {[%emt 0:00:47]} Ndf6 {[%emt 0:00:58]} 20. Qe2 {[%emt 0:01:53]} Bc8 {[%emt 0:02:11]} 21. Bxc8 {[%emt 0:03:25]} Rxc8 {[%emt 0:00:23]} 22. a4 {[%emt 0:02:04]} Qd7 {[%emt 0:05:31]} 23. axb5 {[%emt 0:00:30]} axb5 {[%emt 0:00:11]} 24. Nxb5 {[%emt 0:02:57]} Nxe4 {[%emt 0:01:47]} 25. Nxd6 {[%emt 0:00:04]} Nxd6 {[%emt 0:00:03]} 26. Qxe5+ {[%emt 0:00:06]} f6 {[%emt 0:00:03]} 27. Qb2 {[%emt 0:00:13]} Rb8 {[%emt 0:01:03]} 28. Bf4 {[%emt 0:01:54]} Rb4 {[%emt 0:00:38]} 29. Ng2 {[%emt 0:01:36]} c4 {[%emt 0:03:05]} 30. Bxd6 {[%emt 0:01:02]} Qxd6 {[%emt 0:01:44]} 31. Rxc4 {[%emt 0:00:06]} Rb6 {[%emt 0:00:12]} 32. Ne3 {[%emt 0:00:50]} Rfb8 {[%emt 0:00:22]} 33. Rc3 {[%emt 0:00:15]} 1-0

[Event "FRA-chT Top 12 2019"]
[Site "Brest"]
[Date "2019.05.27"]
[Round "10.6"]
[White "Demuth, Adrien"]
[Black "Leconte, Maria"]
[Result "1-0"]
[ECO "D32"]
[WhiteElo "2517"]
[BlackElo "2246"]
[Annotator "ChessBase"]
[PlyCount "47"]
[EventDate "2019.05.18"]
[EventType "team-tourn"]
[EventCountry "FRA"]
[SourceTitle "playchess.com"]
[Source "ChessBase"]
[SourceQuality "1"]
[TimeControl "40/5400+30:1800+30"]

1. Nf3 {[%emt 0:00:00]} d5 {[%emt 0:00:00]} 2. d4 {[%emt 0:00:00]} c5 {[%emt 0:00:14]} 3. c4 {[%emt 0:00:35]} e6 {[%emt 0:00:30]} 4. cxd5 {[%emt 0:00:14]} exd5 {[%emt 0:00:04]} 5. Nc3 {[%emt 0:00:15]} Nc6 {[%emt 0:00:15]} 6. dxc5 {[%emt 0:00:31]} d4 {[%emt 0:00:18]} 7. Na4 {[%emt 0:00:06]} Bxc5 {[%emt 0:03:08]} 8. Nxc5 {[%emt 0:00:07]} Qa5+ {[%emt 0:00:04]} 9. Bd2 {[%emt 0:00:32]} Qxc5 {[%emt 0:00:05]} 10. b4 {[%emt 0:00:12]} Qb6 {[%emt 0:06:27]} 11. Qa4 {[%emt 0:02:25]} a6 {[%emt 0:08:40]} 12. e3 {[%emt 0:00:18]} dxe3 {[%emt 0:06:24]} 13. fxe3 {[%emt 0:01:00]} Bd7 {[%emt 0:11:47]} 14. b5 {[%emt 0:05:44]} Nd8 {[%emt 0:06:40]} 15. Qa3 {[%emt 0:23:38]} Ne7 {[%emt 0:10:01]} 16. Bb4 {[%emt 0:17:21]} Nd5 {[%emt 0:02:19]} 17. Bd2 {[%emt 0:14:18]} Ra7 {[%emt 0:21:36]} 18. bxa6 {[%emt 0:02:30]} bxa6 {[%emt 0:00:04]} 19. Bc4 {[%emt 0:04:14]} Be6 {[%emt 0:03:39]} 20. e4 {[%emt 0:08:24]} Nb4 {[%emt 0:06:25]} 21. Bxb4 {[%emt 0:02:10]} Bxc4 {[%emt 0:00:04]} 22. Bc5 {[%emt 0:00:09]} Qg6 {[%emt 0:01:16]} 23. Bxa7 {[%emt 0:00:50]} Qxg2 {[%emt 0:05:07]} 24. O-O-O {[%emt 0:00:17]} 1-0

[Event "FRA-chT Top 12 2019"]
[Site "Brest"]
[Date "2019.05.27"]
[Round "10.6"]
[White "Riff, Jean-Noel"]
[Black "Charmeteau, Sven"]
[Result "1-0"]
[ECO "B32"]
[WhiteElo "2494"]
[BlackElo "2292"]
[Annotator "ChessBase"]
[PlyCount "53"]
[EventDate "2019.05.18"]
[EventType "team-tourn"]
[EventCountry "FRA"]
[SourceTitle "playchess.com"]
[Source "ChessBase"]
[SourceQuality "1"]
[TimeControl "40/5400+30:1800+30"]

1. e4 {[%emt 0:00:00]} c5 {[%emt 0:00:00]} 2. Nf3 {[%emt 0:00:00]} Nc6 {[%emt 0:00:00]} 3. d4 {[%emt 0:00:00]} cxd4 {[%emt 0:00:00]} 4. Nxd4 {[%emt 0:00:00]} e5 {[%emt 0:00:00]} 5. Nb5 {[%emt 0:00:00]} d6 {[%emt 0:00:02]} 6. N1c3 {[%emt 0:00:00]} a6 {[%emt 0:00:05]} 7. Na3 {[%emt 0:00:03]} Be7 {[%emt 0:00:06]} 8. Be3 {[%emt 0:02:01]} Nf6 {[%emt 0:00:23]} 9. Nc4 {[%emt 0:00:29]} b5 {[%emt 0:00:33]} 10. Nb6 {[%emt 0:00:06]} Rb8 {[%emt 0:00:03]} 11. Nxc8 {[%emt 0:00:05]} Qxc8 {[%emt 0:00:05]} 12. Be2 {[%emt 0:00:14]} O-O {[%emt 0:03:22]} 13. a3 {[%emt 0:01:28]} a5 {[%emt 0:07:42]} 14. Nxb5 {[%emt 0:10:10]} Nxe4 {[%emt 0:00:23]} 15. O-O {[%emt 0:00:06]} Rd8 {[%emt 0:09:17]} 16. c4 {[%emt 0:02:12]} Nf6 {[%emt 0:15:18]} 17. Rc1 {[%emt 0:06:14]} Qb7 {[%emt 0:01:27]} 18. Qa4 {[%emt 0:03:49]} d5 {[%emt 0:25:11]} 19. cxd5 {[%emt 0:04:52]} Nxd5 {[%emt 0:00:26]} 20. Qc4 {[%emt 0:00:36]} Nd4 {[%emt 0:00:23]} 21. Nxd4 {[%emt 0:01:03]} exd4 {[%emt 0:00:05]} 22. Bxd4 {[%emt 0:00:25]} Nb6 {[%emt 0:00:48]} 23. Qc3 {[%emt 0:03:56]} Qe4 {[%emt 0:06:19]} 24. Be5 {[%emt 0:14:58]} Rbc8 {[%emt 0:06:08]} 25. Qg3 {[%emt 0:02:18]} f6 {[%emt 0:09:37]} 26. Bc7 {[%emt 0:01:05]} Rd7 {[%emt 0:11:11]} 27. Bb5 {[%emt 0:02:46]} 1-0

[Event "FRA-chT Top 12 2019"]
[Site "Brest"]
[Date "2019.05.27"]
[Round "10.6"]
[White "Delorme, Axel"]
[Black "Vitoux, Colomban"]
[Result "1/2-1/2"]
[ECO "A05"]
[WhiteElo "2489"]
[BlackElo "2384"]
[Annotator "ChessBase"]
[PlyCount "47"]
[EventDate "2019.05.18"]
[EventType "team-tourn"]
[EventCountry "FRA"]
[SourceTitle "playchess.com"]
[Source "ChessBase"]
[SourceQuality "1"]
[TimeControl "40/5400+30:1800+30"]

1. Nf3 {[%emt 0:00:00]} Nf6 {[%emt 0:01:18]} 2. g3 {[%emt 0:00:38]} g6 {[%emt 0:00:08]} 3. b3 {[%emt 0:00:12]} Bg7 {[%emt 0:00:25]} 4. Bb2 {[%emt 0:00:07]} c5 {[%emt 0:02:18]} 5. c4 {[%emt 0:00:56]} b6 {[%emt 0:00:44]} 6. Bg2 {[%emt 0:00:27]} Bb7 {[%emt 0:00:04]} 7. O-O {[%emt 0:00:37]} O-O {[%emt 0:00:47]} 8. d4 {[%emt 0:02:11]} cxd4 {[%emt 0:01:00]} 9. Qxd4 {[%emt 0:01:47]} d6 {[%emt 0:01:12]} 10. Nc3 {[%emt 0:05:17]} Nbd7 {[%emt 0:05:40]} 11. Rfd1 {[%emt 0:06:39]} Rc8 {[%emt 0:07:08]} 12. Rac1 {[%emt 0:04:48]} a6 {[%emt 0:23:31]} 13. Ne1 {[%emt 0:11:41]} Ne4 {[%emt 0:06:50]} 14. Qe3 {[%emt 0:03:05]} Bxc3 {[%emt 0:05:34]} 15. Bxc3 {[%emt 0:00:40]} Nxc3 {[%emt 0:00:26]} 16. Rxc3 {[%emt 0:01:09]} Bxg2 {[%emt 0:08:01]} 17. Nxg2 {[%emt 0:00:19]} Rc5 {[%emt 0:00:29]} 18. Nf4 {[%emt 0:01:55]} Nf6 {[%emt 0:04:07]} 19. b4 {[%emt 0:05:25]} Rc6 {[%emt 0:14:33]} 20. Nd5 {[%emt 0:06:21]} e6 {[%emt 0:03:48]} 21. Nf4 {[%emt 0:08:57]} Qc7 {[%emt 0:00:18]} 22. Rdc1 {[%emt 0:00:52]} Rc8 {[%emt 0:00:49]} 23. Qf3 {[%emt 0:00:09]} Kg7 {[%emt 0:03:50]} 24. Nd3 {[%emt 0:03:59]} 1/2-1/2

[Event "FRA-chT Top 12 2019"]
[Site "Brest"]
[Date "2019.05.27"]
[Round "10.6"]
[White "Lamard, Guillaume"]
[Black "Colin, Vincent"]
[Result "1/2-1/2"]
[ECO "A05"]
[WhiteElo "2405"]
[BlackElo "2383"]
[Annotator "NA"]
[PlyCount "102"]
[EventDate "2019.05.18"]
[EventType "team-tourn"]
[EventCountry "FRA"]
[SourceTitle "playchess.com"]
[Source "ChessBase"]
[SourceQuality "1"]
[TimeControl "40/5400+30:1800+30"]

1. Nf3 {[%emt 0:00:00]} Nf6 {[%emt 0:00:00]} 2. g3 {[%emt 0:00:12]} g6 {[%emt 0:00:00]} 3. b3 {[%emt 0:00:03]} Bg7 {[%emt 0:00:11]} 4. Bb2 {[%emt 0:00:03]} O-O {[%emt 0:00:14]} 5. Bg2 {[%emt 0:00:02]} d6 {[%emt 0:00:07]} 6. d4 {[%emt 0:00:04]} Ne4 {[%emt 0:06:21]} 7. O-O {[%emt 0:01:01]} c5 {[%emt 0:06:03]} 8. e3 {[%emt 0:01:05]} Nc6 {[%emt 0:03:44]} 9. c4 {[%emt 0:05:51]} cxd4 {[%emt 0:03:17]} 10. Nxd4 {[%emt 0:01:13]} Nxd4 {[%emt 0:00:14]} 11. Bxd4 {[%emt 0:00:10]} Nf6 {[%emt 0:01:43]} 12. Qd2 {[%emt 0:02:56]} h5 {[%emt 0:04:54]} 13. h4 {[%emt 0:09:06]} a6 {[%emt 0:07:43]} 14. a4 {[%emt 0:13:47]} a5 {[%emt 0:05:38]} 15. Qb2 {[%emt 0:04:58]} e5 {[%emt 0:05:38]} 16. Bc3 {[%emt 0:00:30]} Ng4 {[%emt 0:00:06]} 17. Nd2 {[%emt 0:01:07]} g5 {[%emt 0:05:12]} 18. hxg5 {[%emt 0:02:29]} Qxg5 {[%emt 0:04:52]} 19. Nf3 {[%emt 0:02:20]} Qe7 {[%emt 0:02:53]} 20. Rad1 {[%emt 0:12:20]} f5 {[%emt 0:04:45]} 21. Qd2 {[%emt 0:10:15]} Ra6 {[%emt 0:03:29]} 22. Nh4 {[%emt 0:05:41]} Qc7 {[%emt 0:03:40]} 23. f3 {[%emt 0:02:53]} Nh6 {[%emt 0:03:17]} 24. e4 {[%emt 0:09:39]} Qb6+ {[%emt 0:02:34]} 25. Kh1 {[%emt 0:00:05]} Qxb3 {[%emt 0:00:10]} 26. Qd5+ {[%emt 0:02:53]} Kh7 {[%emt 0:01:46]} 27. Bd2 {[%emt 0:00:01]} Qxa4 {[%emt 0:12:59]} 28. Bxh6 {[%emt 0:00:31]} Bxh6 {[%emt 0:02:37]} 29. exf5 {[%emt 0:04:55]} Rc6 {[%emt 0:03:08]} 30. f4 {[%emt 0:04:18]} Qxc4 {[%emt 0:02:15]} 31. fxe5 {[%emt 0:00:16]} dxe5 {[%emt 0:00:33]} 32. Qxe5 {[%emt 0:01:17]} Rcf6 {[%emt 0:01:07]} 33. Rd8 {[%emt 0:01:42]} Qf7 {[%emt 0:01:40]} 34. Rxf8 {[%emt 0:00:40]} Bxf8 {[%emt 0:00:12]} 35. Rd1 {[%emt 0:01:27]} Bg7 {[%emt 0:01:03]} 36. Qxa5 {[%emt 0:00:22]} Bd7 {[%emt 0:01:21]} 37. Bxb7 {[%emt 0:00:17]} Bxf5 {[%emt 0:00:19]} 38. Bd5 {[%emt 0:00:38]} Be6 {[%emt 0:01:28]} 39. Be4+ {[%emt 0:00:04]} Kg8 {[%emt 0:00:09]} 40. Rd8+ {[%emt 0:00:55]} Bf8 {[%emt 0:00:01]} 41. Qg5+ {[%emt 0:07:10]} Qg7 {[%emt 0:03:00]} 42. Ng6 {[%emt 0:02:46]} Bg4 {[%emt 0:03:35]} 43. Qd5+ {[%emt 0:14:08]} Be6 {[%emt 0:04:03]} 44. Nxf8 {[%emt 0:05:54]} Rf1+ {[%emt 0:02:12]} 45. Kg2 {[%emt 0:00:04]} Rg1+ {[%emt 0:00:04]} 46. Kxg1 {[%emt 0:01:01]} Qxg3+ {[%emt 0:00:07]} 47. Kf1 {[%emt 0:00:11]} Bxd5 {[%emt 0:00:32]} 48. Bxd5+ {[%emt 0:01:40]} Kg7 {[%emt 0:00:09]} 49. Ne6+ {[%emt 0:00:38]} Kf6 {[%emt 0:00:03]} 50. Rf8+ {[%emt 0:01:25]} Ke5 {[%emt 0:01:46]} 51. Rf3 {[%emt 0:00:45]} Qxf3+ {[%emt 0:00:46]} 1/2-1/2

[Event "FRA-chT Top 12 2019"]
[Site "Brest"]
[Date "2019.05.27"]
[Round "10.6"]
[White "Riff, Vincent"]
[Black "Iglesias, Joachim"]
[Result "1-0"]
[ECO "E91"]
[WhiteElo "2399"]
[BlackElo "2276"]
[Annotator "NA"]
[PlyCount "113"]
[EventDate "2019.05.18"]
[EventType "team-tourn"]
[EventCountry "FRA"]
[SourceTitle "playchess.com"]
[Source "ChessBase"]
[SourceQuality "1"]
[TimeControl "40/5400+30:1800+30"]

1. d4 {[%emt 0:00:00]} g6 {[%emt 0:00:00]} 2. Nf3 {[%emt 0:00:08]} Bg7 {[%emt 0:00:00]} 3. c4 {[%emt 0:00:14]} d6 {[%emt 0:00:05]} 4. Nc3 {[%emt 0:03:43]} Nf6 {[%emt 0:00:21]} 5. e4 {[%emt 0:03:16]} O-O {[%emt 0:00:20]} 6. Be2 {[%emt 0:00:06]} Na6 {[%emt 0:00:23]} 7. O-O {[%emt 0:01:35]} e5 {[%emt 0:02:53]} 8. dxe5 {[%emt 0:04:30]} dxe5 {[%emt 0:02:14]} 9. Be3 {[%emt 0:00:08]} c6 {[%emt 0:00:58]} 10. a3 {[%emt 0:01:00]} Ng4 {[%emt 0:06:04]} 11. Bg5 {[%emt 0:05:08]} f6 {[%emt 0:01:26]} 12. Bd2 {[%emt 0:05:47]} Nc5 {[%emt 0:17:09]} 13. h3 {[%emt 0:02:12]} Nh6 {[%emt 0:00:40]} 14. Be3 {[%emt 0:00:42]} Qe7 {[%emt 0:01:24]} 15. b4 {[%emt 0:04:45]} Ne6 {[%emt 0:00:27]} 16. Qb3 {[%emt 0:00:20]} Nf7 {[%emt 0:00:55]} 17. Rfd1 {[%emt 0:01:10]} f5 {[%emt 0:03:32]} 18. Rac1 {[%emt 0:22:06]} f4 {[%emt 0:02:54]} 19. Bc5 {[%emt 0:03:58]} Nxc5 {[%emt 0:01:02]} 20. bxc5 {[%emt 0:00:07]} Qxc5 {[%emt 0:02:56]} 21. Na4 {[%emt 0:01:30]} Qe7 {[%emt 0:00:56]} 22. c5 {[%emt 0:01:35]} h5 {[%emt 0:06:23]} 23. Nb2 {[%emt 0:08:40]} Kh7 {[%emt 0:06:51]} 24. Nc4 {[%emt 0:00:59]} Be6 {[%emt 0:03:07]} 25. Qb4 {[%emt 0:00:30]} Rab8 {[%emt 0:03:39]} 26. Qa5 {[%emt 0:02:00]} Bf6 {[%emt 0:04:58]} 27. Nd6 {[%emt 0:03:29]} g5 {[%emt 0:05:30]} 28. Nh2 {[%emt 0:00:50]} Nxd6 {[%emt 0:06:48]} 29. Rxd6 {[%emt 0:02:01]} g4 {[%emt 0:06:49]} 30. hxg4 {[%emt 0:00:35]} Rg8 {[%emt 0:00:09]} 31. Qc3 {[%emt 0:02:03]} Bxg4 {[%emt 0:02:14]} 32. Bxg4 {[%emt 0:07:24]} hxg4 {[%emt 0:00:08]} 33. Rcd1 {[%emt 0:00:10]} Kh8 {[%emt 0:03:47]} 34. Rd7 {[%emt 0:09:55]} Rbd8 {[%emt 0:02:15]} 35. Nxg4 {[%emt 0:00:05]} Rxd7 {[%emt 0:02:11]} 36. Qh3+ {[%emt 0:00:02]} Qh7 {[%emt 0:00:35]} 37. Rxd7 {[%emt 0:00:08]} Qxh3 {[%emt 0:00:10]} 38. gxh3 {[%emt 0:00:02]} Rg7 {[%emt 0:00:59]} 39. Rd3 {[%emt 0:02:18]} Be7 {[%emt 0:02:25]} 40. Rc3 {[%emt 0:00:05]} Bd8 {[%emt 0:00:28]} 41. Kf1 {[%emt 0:32:28]} Bc7 {[%emt 0:31:04]} 42. Ke2 {[%emt 0:00:00]} Kg8 {[%emt 0:00:00]} 43. Nh6+ {[%emt 0:00:00]} Kf8 {[%emt 0:00:00]} 44. h4 {[%emt 0:00:00]} Rg2 {[%emt 0:00:00]} 45. Nf5 {[%emt 0:00:00]} Rh2 {[%emt 0:00:00]} 46. Kf1 {[%emt 0:00:00]} Rh1+ {[%emt 0:00:00]} 47. Kg2 {[%emt 0:00:00]} Re1 {[%emt 0:00:00]} 48. Kf3 {[%emt 0:00:00]} Kf7 {[%emt 0:00:00]} 49. Rd3 {[%emt 0:00:00]} Ke6 {[%emt 0:00:00]} 50. h5 {[%emt 0:00:00]} Rg1 {[%emt 0:00:00]} 51. h6 {[%emt 0:00:00]} b5 {[%emt 0:00:00]} 52. Ng7+ {[%emt 0:00:00]} Ke7 {[%emt 0:00:00]} 53. Nf5+ {[%emt 0:00:00]} Ke6 {[%emt 0:00:00]} 54. Nh4 {[%emt 0:00:00]} Rh1 {[%emt 0:00:37]} 55. Kg4 {[%emt 0:00:00]} Rg1+ {[%emt 0:00:20]} 56. Kh5 {[%emt 0:00:00]} Kf6 {[%emt 0:01:29]} 57. h7 {[%emt 0:00:00]} 1-0

[Event "FRA-chT Top 12 2019"]
[Site "Brest"]
[Date "2019.05.27"]
[Round "10.7"]
[White "Marcelin, Cyril"]
[Black "Giroyan, Gary"]
[Result "0-1"]
[ECO "A48"]
[WhiteElo "2451"]
[BlackElo "2409"]
[Annotator "ChessBase"]
[PlyCount "68"]
[EventDate "2019.05.18"]
[EventType "team-tourn"]
[EventCountry "FRA"]
[SourceTitle "playchess.com"]
[Source "ChessBase"]
[SourceQuality "1"]
[TimeControl "40/5400+30:1800+30"]

1. d4 {[%emt 0:00:00]} Nf6 {[%emt 0:00:13]} 2. Nf3 {[%emt 0:00:00]} g6 {[%emt 0:00:17]} 3. Nbd2 {[%emt 0:00:09]} c5 {[%emt 0:08:18]} 4. dxc5 {[%emt 0:01:19]} Qa5 {[%emt 0:08:51]} 5. a3 {[%emt 0:01:15]} Qxc5 {[%emt 0:01:38]} 6. b4 {[%emt 0:00:45]} Qc7 {[%emt 0:01:23]} 7. Bb2 {[%emt 0:00:12]} Bg7 {[%emt 0:00:02]} 8. c4 {[%emt 0:00:34]} O-O {[%emt 0:00:57]} 9. g3 {[%emt 0:14:03]} a5 {[%emt 0:17:00]} 10. Bg2 {[%emt 0:02:23]} axb4 {[%emt 0:01:51]} 11. axb4 {[%emt 0:00:08]} Rxa1 {[%emt 0:00:02]} 12. Qxa1 {[%emt 0:03:18]} Na6 {[%emt 0:01:07]} 13. Qb1 {[%emt 0:29:19]} d5 {[%emt 0:19:51]} 14. b5 {[%emt 0:08:24]} Bf5 {[%emt 0:11:02]} 15. Qc1 {[%emt 0:02:21]} Nc5 {[%emt 0:11:20]} 16. O-O {[%emt 0:01:43]} dxc4 {[%emt 0:00:27]} 17. Qxc4 {[%emt 0:02:51]} Be6 {[%emt 0:00:14]} 18. Qh4 {[%emt 0:04:15]} Qa5 {[%emt 0:04:03]} 19. Ng5 {[%emt 0:19:47]} h6 {[%emt 0:00:02]} 20. Bxf6 {[%emt 0:01:43]} exf6 {[%emt 0:00:35]} 21. Nxe6 {[%emt 0:01:16]} Nxe6 {[%emt 0:00:10]} 22. Ne4 {[%emt 0:02:06]} Qxb5 {[%emt 0:04:30]} 23. Nd6 {[%emt 0:00:42]} Qxe2 {[%emt 0:00:12]} 24. Nxb7 {[%emt 0:00:16]} f5 {[%emt 0:00:56]} 25. Qe7 {[%emt 0:00:52]} Bd4 {[%emt 0:01:29]} 26. Qb4 {[%emt 0:01:36]} Rc8 {[%emt 0:02:09]} 27. Qe1 {[%emt 0:01:10]} Qa2 {[%emt 0:02:44]} 28. Qd1 {[%emt 0:00:46]} Rc2 {[%emt 0:00:01]} 29. Qf3 {[%emt 0:00:26]} Ng5 {[%emt 0:00:02]} 30. Qf4 {[%emt 0:00:36]} Rxf2 {[%emt 0:00:07]} 31. Qxf2 {[%emt 0:00:39]} Bxf2+ {[%emt 0:00:09]} 32. Rxf2 {[%emt 0:00:04]} Qb1+ {[%emt 0:00:17]} 33. Rf1 {[%emt 0:00:05]} Qb6+ {[%emt 0:00:01]} 34. Kh1 {[%emt 0:00:14]} Ne4 {[%emt 0:00:01]} 0-1

[Event "FRA-chT Top 12 2019"]
[Site "Brest"]
[Date "2019.05.27"]
[Round "10.7"]
[White "Adrian, Claude"]
[Black "Loiseau, Quentin"]
[Result "0-1"]
[ECO "A11"]
[WhiteElo "2238"]
[BlackElo "2471"]
[Annotator "ChessBase"]
[PlyCount "72"]
[EventDate "2019.05.18"]
[EventType "team-tourn"]
[EventCountry "FRA"]
[SourceTitle "playchess.com"]
[Source "ChessBase"]
[SourceQuality "1"]
[TimeControl "40/5400+30:1800+30"]

1. c4 {[%emt 0:00:00]} c6 {[%emt 0:00:58]} 2. Nf3 {[%emt 0:00:00]} d5 {[%emt 0:00:07]} 3. d4 {[%emt 0:00:00]} e6 {[%emt 0:02:37]} 4. Nbd2 {[%emt 0:02:56]} Nf6 {[%emt 0:03:22]} 5. g3 {[%emt 0:00:47]} c5 {[%emt 0:16:51]} 6. cxd5 {[%emt 0:06:44]} Qxd5 {[%emt 0:14:53]} 7. Bg2 {[%emt 0:09:20]} cxd4 {[%emt 0:04:58]} 8. O-O {[%emt 0:03:23]} Nc6 {[%emt 0:02:37]} 9. Nb3 {[%emt 0:01:27]} d3 {[%emt 0:01:06]} 10. Bf4 {[%emt 0:14:26]} Qd8 {[%emt 0:10:38]} 11. Rc1 {[%emt 0:05:18]} Be7 {[%emt 0:04:11]} 12. Nc5 {[%emt 0:04:26]} dxe2 {[%emt 0:02:01]} 13. Qxe2 {[%emt 0:00:26]} Nd5 {[%emt 0:00:58]} 14. Rfd1 {[%emt 0:02:30]} O-O {[%emt 0:02:10]} 15. a3 {[%emt 0:06:17]} Bxc5 {[%emt 0:13:29]} 16. Rxc5 {[%emt 0:00:11]} Nce7 {[%emt 0:01:01]} 17. Bc7 {[%emt 0:06:06]} Qe8 {[%emt 0:00:27]} 18. Bd6 {[%emt 0:01:25]} b6 {[%emt 0:03:30]} 19. Rcxd5 {[%emt 0:12:16]} Nxd5 {[%emt 0:00:36]} 20. Ng5 {[%emt 0:02:28]} h6 {[%emt 0:02:50]} 21. Bxf8 {[%emt 0:11:09]} Qxf8 {[%emt 0:00:23]} 22. Rxd5 {[%emt 0:03:54]} exd5 {[%emt 0:01:40]} 23. Bxd5 {[%emt 0:00:04]} hxg5 {[%emt 0:02:25]} 24. Bxa8 {[%emt 0:00:10]} Be6 {[%emt 0:00:03]} 25. Bg2 {[%emt 0:00:53]} Qd6 {[%emt 0:01:05]} 26. h3 {[%emt 0:00:22]} Qd4 {[%emt 0:00:54]} 27. Kh2 {[%emt 0:01:50]} a5 {[%emt 0:00:11]} 28. Bf3 {[%emt 0:02:01]} g6 {[%emt 0:01:08]} 29. Qc2 {[%emt 0:01:20]} b5 {[%emt 0:03:45]} 30. Qe2 {[%emt 0:00:53]} b4 {[%emt 0:00:05]} 31. axb4 {[%emt 0:00:04]} axb4 {[%emt 0:00:02]} 32. Kg2 {[%emt 0:01:36]} Kg7 {[%emt 0:00:31]} 33. Kh2 {[%emt 0:00:45]} Bc4 {[%emt 0:01:17]} 34. Qc2 {[%emt 0:01:01]} b3 {[%emt 0:00:10]} 35. Qc1 {[%emt 0:00:25]} Qxf2+ {[%emt 0:00:07]} 36. Bg2 {[%emt 0:00:03]} Bd5 {[%emt 0:00:23]} 0-1